bitfinex/quotes_BTCUSD_20250422
["timestamp","ask_amount","ask_price","bid_price","bid_amount"]
[1745352051098,0.00437513,91409.0,91408.0,0.02187992]
[1745352053083,0.00537513,91409.0,91408.0,0.02187992]
[1745352055465,0.00537513,91409.0,91408.0,0.02406772]
[1745352055678,0.00537513,91409.0,91408.0,0.12175992]
[1745352059690,0.00537513,91409.0,91408.0,0.12394757]
[1745352061878,0.00537513,91409.0,91408.0,0.12175992]
[1745352062975,0.00537513,91409.0,91408.0,0.02187992]
[1745352063196,0.00537513,91409.0,91401.0,0.02188154]
[1745352063408,0.00537513,91409.0,91407.0,0.09988]
[1745352063611,0.00537513,91409.0,91399.0,0.38704411]
[1745352063612,0.11375594,91408.0,91399.0,0.38704411]
[1745352063819,0.00247508,91407.0,91400.0,0.02188183]
[1745352064039,0.11375594,91406.0,91400.0,0.02188183]
[1745352064250,0.11375594,91406.0,91404.0,0.02188071]
[1745352064491,0.11375594,91406.0,91403.0,0.02188109]
[1745352064689,0.11375594,91406.0,91404.0,0.02188065]
[1745352065101,0.00537513,91409.0,91404.0,0.02188065]
[1745352065300,0.11813107,91409.0,91404.0,0.02188065]
[1745352065493,0.00247508,91408.0,91404.0,0.02188065]
[1745352065656,0.00247508,91408.0,91399.0,0.41986676]
[1745352065657,0.00247508,91408.0,91399.0,0.40892573]
[1745352065998,0.00247508,91408.0,91400.0,0.002]
[1745352066151,0.00247508,91408.0,91401.0,0.02188152]
[1745352066354,0.00247508,91408.0,91399.0,0.38704411]
[1745352066744,0.00247508,91408.0,91359.0,0.02189142]
[1745352066745,0.11375594,91407.0,91398.0,0.38704411]
[1745352067005,0.11375594,91407.0,91404.0,0.001]
[1745352067006,0.0966,91405.0,91404.0,0.001]
[1745352067198,0.21035594,91405.0,91404.0,0.001]
[1745352067403,0.21283102,91405.0,91404.0,0.001]
[1745352067550,0.0966,91405.0,91404.0,0.001]
[1745352067757,0.0966,91405.0,91398.0,0.02188213]
[1745352067959,0.00247508,91404.0,91398.0,0.02188218]
[1745352068164,0.047,91405.0,91402.0,0.02188122]
[1745352068399,0.047,91405.0,91399.0,0.02188205]
[1745352068608,0.047,91405.0,91401.0,0.02188139]
[1745352068864,0.047,91405.0,91394.0,0.01094163]
[1745352069290,0.005,91407.0,91397.0,0.01094127]
[1745352069488,0.11623102,91406.0,91394.0,0.02188305]
[1745352069692,0.005,91405.0,91397.0,0.38704411]
[1745352069898,0.11875594,91405.0,91398.0,0.02188231]
[1745352070114,0.12175594,91405.0,91398.0,0.02188231]
[1745352070332,0.11675594,91405.0,91397.0,0.38704411]
[1745352070540,0.11675594,91405.0,91398.0,0.02188216]
[1745352070738,0.11923102,91405.0,91398.0,0.02188216]
[1745352070944,0.11375594,91405.0,91398.0,0.02188216]
[1745352071146,0.11375594,91405.0,91397.0,0.40892664]
[1745352071569,0.10815594,91405.0,91397.0,0.40892664]
[1745352072023,0.10815594,91405.0,91398.0,0.02188225]
[1745352072199,0.10815594,91405.0,91397.0,0.40892664]
[1745352072611,0.00247508,91404.0,91398.0,0.02188217]
[1745352072814,0.10815594,91405.0,91397.0,0.38704411]
[1745352073136,0.11415594,91405.0,91398.0,0.0218823]
[1745352073490,0.00247508,91404.0,91397.0,0.38704411]
[1745352073706,0.11375594,91403.0,91389.0,0.001]
[1745352073906,0.0942,91401.0,91389.0,0.001]
[1745352074108,0.0478,91392.0,91389.0,0.001]
[1745352074310,0.26524232,91390.0,91389.0,0.001]
[1745352074539,0.42679826,91390.0,91389.0,0.001]
[1745352075166,0.0478,91369.0,91362.0,0.0008478]
[1745352075377,0.11623102,91368.0,91365.0,0.00013829]
[1745352076633,0.12123102,91368.0,91365.0,0.00013829]
[1745352077183,0.12123102,91368.0,91366.0,0.02188998]
[1745352077184,0.01,91368.0,91366.0,0.02188998]
[1745352077474,0.01,91368.0,91365.0,0.00013829]
[1745352077475,0.01,91368.0,91365.0,0.02202848]
[1745352077701,0.01,91368.0,91365.0,0.00013829]
[1745352077882,0.005,91368.0,91365.0,0.00013829]
[1745352078229,0.006,91368.0,91365.0,0.00013829]
[1745352079049,0.001,91368.0,91365.0,0.00013829]
[1745352079338,0.002,91368.0,91365.0,0.00013829]
[1745352079944,0.00247508,91376.0,91365.0,0.00013829]
[1745352080140,0.002,91368.0,91366.0,0.38704411]
[1745352080544,0.004,91368.0,91365.0,0.00013829]
[1745352080778,0.002,91368.0,91365.0,0.00013829]
[1745352081273,0.004,91368.0,91365.0,0.00013829]
[1745352082710,0.008,91368.0,91365.0,0.00013829]
[1745352083826,0.008,91368.0,91367.0,0.02188974]
[1745352084040,0.004,91368.0,91367.0,0.02188974]
[1745352084272,0.00247508,91385.0,91367.0,0.02188974]
[1745352084478,0.002,91368.0,91367.0,0.02188974]
[1745352084920,0.002,91368.0,91366.0,0.02188982]
[1745352085134,0.002,91368.0,91365.0,0.00013829]
[1745352086220,0.005,91368.0,91365.0,0.00013829]
[1745352086679,0.002,91368.0,91365.0,0.00013829]
[1745352086896,0.004,91368.0,91365.0,0.00013829]
[1745352087086,0.004,91368.0,91367.0,0.02188974]
[1745352087544,0.002,91368.0,91365.0,0.02202845]
[1745352087790,0.00247508,91383.0,91367.0,0.02188952]
[1745352087983,0.11375594,91382.0,91365.0,0.02202832]
[1745352088305,0.00247508,91381.0,91365.0,0.02202832]
[1745352088504,0.11375594,91380.0,91370.0,0.38704411]
[1745352088728,0.00273609,91379.0,91370.0,0.38704411]
[1745352088943,0.11375594,91378.0,91370.0,0.38704411]
[1745352089617,0.00273609,91377.0,91370.0,0.38704411]
[1745352089860,0.11649203,91377.0,91370.0,0.38704411]
[1745352090105,0.11375594,91377.0,91370.0,0.38704411]
[1745352090605,0.00273609,91376.0,91370.0,0.38704411]
[1745352090835,0.11375594,91377.0,91370.0,0.38704411]
[1745352091275,0.00273609,91376.0,91370.0,0.38704411]
[1745352091482,0.00273609,91376.0,91360.0,0.38704411]
[1745352091715,0.00273609,91376.0,91366.0,0.38704411]
[1745352091961,0.11649203,91376.0,91360.0,0.38704411]
[1745352092166,0.11375594,91375.0,91360.0,0.38704411]
[1745352092381,0.00273619,91374.0,91360.0,0.38704411]
[1745352092582,0.11375594,91373.0,91360.0,0.38704411]
[1745352092802,0.00273619,91372.0,91360.0,0.38704411]
[1745352093962,0.00373619,91372.0,91360.0,0.38704411]
[1745352094172,0.00373619,91372.0,91360.0,0.40893551]
[1745352094791,0.00373619,91372.0,91361.0,0.02189117]
[1745352095481,0.00473619,91372.0,91361.0,0.02189117]
[1745352095897,0.00273619,91372.0,91361.0,0.02189117]
[1745352096086,0.00373619,91372.0,91361.0,0.02189117]
[1745352096295,0.00473619,91372.0,91361.0,0.02189117]
[1745352096524,0.00473619,91372.0,91360.0,0.40893544]
[1745352096955,0.00473619,91372.0,91360.0,0.38704411]
[1745352097187,0.11849213,91372.0,91360.0,0.38704411]
[1745352097429,0.11375594,91371.0,91360.0,0.38704411]
[1745352097665,0.00273629,91370.0,91360.0,0.38704411]
[1745352097870,0.11649223,91370.0,91360.0,0.38704411]
[1745352098084,0.11649223,91370.0,91353.0,0.13684313]
[1745352098085,0.0459,91369.0,91353.0,0.13684313]
[1745352098311,0.0459,91367.0,91353.0,0.11495011]
[1745352098540,0.11649254,91366.0,91353.0,0.11495011]
[1745352098813,0.11649254,91366.0,91353.0,0.10021831]
[1745352099033,0.12743753,91366.0,91353.0,0.10021831]
[1745352099476,0.11649254,91366.0,91353.0,0.10021831]
[1745352099694,0.11849254,91366.0,91353.0,0.10021831]
[1745352099924,0.12049254,91366.0,91353.0,0.10021831]
[1745352100662,0.01094523,91364.0,91353.0,0.10021831]
[1745352100888,0.11649251,91363.0,91353.0,0.10021831]
[1745352102328,0.12454874,91363.0,91353.0,0.10021831]
[1745352103030,0.13054874,91363.0,91353.0,0.10021831]
[1745352103445,0.13054874,91363.0,91353.0,0.00013831]
[1745352103995,0.14149408,91363.0,91353.0,0.00013831]
[1745352104198,0.13054874,91363.0,91353.0,0.00013831]
[1745352105686,0.01094582,91359.0,91353.0,0.00013831]
[1745352105948,0.1274386,91358.0,91353.0,0.00013831]
[1745352106181,0.01094606,91357.0,91353.0,0.00013831]
[1745352106376,0.11649266,91356.0,91353.0,0.00013831]
[1745352108620,0.11949266,91356.0,91353.0,0.00013831]
[1745352109136,0.11675594,91356.0,91353.0,0.00013831]
[1745352109345,0.006,91356.0,91353.0,0.00013831]
[1745352109554,0.006,91356.0,91353.0,0.01189403]
[1745352109754,0.006,91356.0,91355.0,0.02189261]
[1745352110576,0.003,91356.0,91355.0,0.02189261]
[1745352110990,0.005,91356.0,91353.0,0.00013831]
[1745352111207,0.005,91356.0,91355.0,0.02189261]
[1745352111433,0.00273637,91376.0,91353.0,0.01108485]
[1745352111434,0.00273637,91376.0,91354.0,0.02189285]
[1745352111659,0.11375594,91375.0,91360.0,0.38704411]
[1745352111823,0.00273623,91374.0,91360.0,0.38704411]
[1745352112025,0.11375594,91373.0,91360.0,0.38704411]
[1745352112246,0.00273623,91372.0,91360.0,0.38704411]
[1745352112624,0.11375594,91371.0,91360.0,0.38704411]
[1745352112828,0.00273623,91370.0,91360.0,0.38704411]
[1745352114548,0.00473623,91370.0,91360.0,0.38704411]
[1745352115092,0.00673623,91370.0,91360.0,0.38704411]
[1745352117477,0.00673623,91370.0,91353.0,0.00013831]
[1745352117478,0.11375594,91369.0,91353.0,0.00013831]
[1745352117686,0.00273639,91368.0,91353.0,0.00013831]
[1745352117882,0.11375594,91367.0,91353.0,0.00013831]
[1745352118053,0.00273639,91366.0,91353.0,0.00013831]
[1745352118240,0.11649233,91366.0,91353.0,0.00013831]
[1745352119744,0.11375594,91365.0,91353.0,0.00013831]
[1745352119950,0.00273639,91364.0,91353.0,0.00013831]
[1745352120323,0.12470128,91363.0,91353.0,0.00013831]
[1745352120538,0.00273661,91362.0,91353.0,0.00013831]
[1745352120749,0.01094391,91375.0,91353.0,0.00013831]
[1745352120750,0.00273661,91374.0,91353.0,0.00013831]
[1745352120956,0.11375594,91373.0,91360.0,0.38704411]
[1745352121132,0.00273639,91372.0,91360.0,0.38704411]
[1745352121395,0.004,91364.0,91360.0,0.38704411]
[1745352121607,0.002,91364.0,91354.0,0.38704411]
[1745352122227,0.002,91364.0,91354.0,0.80054411]
[1745352122443,0.006,91364.0,91354.0,0.80054411]
[1745352122783,0.002,91364.0,91354.0,0.80054411]
[1745352123199,0.00273639,91370.0,91354.0,0.80054411]
[1745352123400,0.00273639,91370.0,91360.0,0.38704411]
[1745352123401,0.11375594,91369.0,91360.0,0.38704411]
[1745352123626,0.00273639,91368.0,91360.0,0.38704411]
[1745352123832,0.11375594,91367.0,91360.0,0.38704411]
[1745352124000,0.00273639,91366.0,91360.0,0.38704411]
[1745352124207,0.002,91364.0,91360.0,0.38704411]
[1745352124807,0.11649233,91366.0,91360.0,0.38704411]
[1745352125242,0.12049233,91366.0,91360.0,0.38704411]
[1745352125440,0.11649233,91366.0,91360.0,0.38704411]
[1745352125856,0.004,91364.0,91360.0,0.38704411]
[1745352126483,0.008,91364.0,91360.0,0.38704411]
[1745352127116,0.004,91364.0,91360.0,0.38704411]
[1745352128555,0.008,91364.0,91360.0,0.38704411]
[1745352130441,0.008,91364.0,91357.0,0.02189205]
[1745352130672,0.008,91364.0,91357.0,0.00080853]
[1745352131350,0.06698413,91376.0,91354.0,0.82243694]
[1745352131583,0.11375594,91375.0,91360.0,0.38704411]
[1745352131759,0.11375594,91375.0,91354.0,0.4135]
[1745352131760,0.002,91364.0,91354.0,0.4135]
[1745352132390,0.005,91364.0,91354.0,0.4135]
[1745352132998,0.002,91364.0,91354.0,0.4135]
[1745352133197,0.004,91364.0,91354.0,0.4135]
[1745352133911,0.002,91364.0,91354.0,0.4135]
[1745352134973,0.004,91364.0,91354.0,0.4135]
[1745352138783,0.004,91364.0,91354.0,0.43539284]
[1745352138990,0.002,91364.0,91354.0,0.4135]
[1745352139241,0.002,91364.0,91359.0,0.02189096]
[1745352139457,0.002,91364.0,91363.0,0.02189069]
[1745352139458,0.004,91364.0,91363.0,0.02189069]
[1745352139642,0.004,91364.0,91363.0,0.28467421]
[1745352139857,0.004,91364.0,91363.0,0.09832]
[1745352140062,0.002,91364.0,91363.0,0.09832]
[1745352140266,0.0498,91375.0,91363.0,0.12021068]
[1745352140471,0.003,91364.0,91363.0,0.09832]
[1745352141117,0.005,91364.0,91363.0,0.09832]
[1745352141534,0.00273605,91374.0,91360.0,0.80054411]
[1745352141535,0.00273605,91374.0,91360.0,0.4135]
[1745352141747,0.11375594,91373.0,91363.0,0.09832]
[1745352141957,0.00273624,91372.0,91363.0,0.001]
[1745352142217,0.11375594,91371.0,91363.0,0.001]
[1745352142439,0.00273629,91370.0,91361.0,0.09832]
[1745352142634,0.11375594,91369.0,91361.0,0.09832]
[1745352142899,0.00273629,91368.0,91361.0,0.09832]
[1745352144212,0.00473629,91368.0,91361.0,0.09832]
[1745352145098,0.00673629,91368.0,91361.0,0.09832]
[1745352146365,0.004,91368.0,91361.0,0.09832]
[1745352146605,0.004,91368.0,91362.0,0.0218909]
[1745352146845,0.004,91368.0,91365.0,0.03283533]
[1745352147063,0.004,91368.0,91365.0,0.00080803]
[1745352147486,0.002,91368.0,91365.0,0.00080803]
[1745352147845,0.004,91368.0,91365.0,0.00080803]
[1745352148050,0.002,91368.0,91365.0,0.00080803]
[1745352148271,0.003,91368.0,91365.0,0.00080803]
[1745352148472,0.005,91368.0,91366.0,0.4135]
[1745352148922,0.003,91368.0,91366.0,0.4135]
[1745352149269,0.006,91368.0,91366.0,0.4135]
[1745352149650,0.00273599,91384.0,91366.0,0.4135]
[1745352149931,0.11375594,91383.0,91370.0,0.38704411]
[1745352150185,0.00273598,91382.0,91366.0,0.4135]
[1745352150410,0.22980706,91381.0,91366.0,0.4135]
[1745352150627,0.00273606,91380.0,91366.0,0.4135]
[1745352150848,0.11375594,91379.0,91366.0,0.4135]
[1745352151066,0.00273606,91378.0,91366.0,0.4135]
[1745352151252,0.11375594,91377.0,91366.0,0.4135]
[1745352151584,0.00273606,91376.0,91366.0,0.4135]
[1745352151794,0.116492,91376.0,91366.0,0.4135]
[1745352152208,0.116492,91376.0,91366.0,0.80054411]
[1745352153823,0.119492,91376.0,91366.0,0.80054411]
[1745352154222,0.01094427,91372.0,91366.0,0.4135]
[1745352154388,0.1164922,91371.0,91361.0,0.09832]
[1745352156126,0.0466,91370.0,91361.0,0.09832]
[1745352156311,0.16529222,91369.0,91361.0,0.09832]
[1745352157232,0.01094511,91365.0,91354.0,0.4135]
[1745352157458,0.01094558,91361.0,91354.0,0.4135]
[1745352157723,0.11649254,91360.0,91354.0,0.4135]
[1745352157951,0.33540768,91360.0,91354.0,0.4135]
[1745352158164,0.11375594,91360.0,91354.0,0.4135]
[1745352158382,0.0466,91359.0,91354.0,0.4135]
[1745352158596,0.21892377,91356.0,91354.0,0.4135]
[1745352158828,0.11649261,91355.0,91354.0,0.4135]
[1745352159493,0.11649261,91355.0,91352.0,0.0008478]
[1745352159494,0.21892856,91354.0,91352.0,0.0008478]
[1745352159707,0.3326845,91354.0,91352.0,0.0008478]
[1745352159941,0.3792845,91354.0,91352.0,0.0008478]
[1745352160153,0.3802845,91354.0,91352.0,0.0008478]
[1745352160809,0.16135594,91354.0,91352.0,0.0008478]
[1745352161021,0.16409298,91354.0,91352.0,0.0008478]
[1745352161231,0.38902154,91354.0,91352.0,0.0008478]
[1745352161518,0.16735594,91354.0,91352.0,0.0008478]
[1745352161741,0.17009298,91354.0,91352.0,0.0008478]
[1745352162161,0.17509298,91354.0,91353.0,0.00113831]
[1745352162822,0.12575594,91354.0,91353.0,0.00113831]
[1745352164275,0.012,91354.0,91353.0,0.00113831]
[1745352165172,0.006,91354.0,91353.0,0.00013831]
[1745352165400,0.01,91354.0,91353.0,0.00013831]
[1745352165599,0.004,91354.0,91353.0,0.00013831]
[1745352165801,0.007,91354.0,91353.0,0.00013831]
[1745352167308,0.003,91354.0,91353.0,0.00013831]
[1745352167706,0.006,91354.0,91353.0,0.00013831]
[1745352168176,0.003,91354.0,91353.0,0.00013831]
[1745352168387,0.007,91354.0,91353.0,0.00013831]
[1745352168583,0.004,91354.0,91353.0,0.00013831]
[1745352169077,0.007,91354.0,91353.0,0.00013831]
[1745352169747,0.16645594,91354.0,91353.0,0.00013831]
[1745352170538,0.16919276,91354.0,91353.0,0.00013831]
[1745352171144,0.16645594,91354.0,91353.0,0.00013831]
[1745352173524,0.16919284,91354.0,91353.0,0.00013831]
[1745352177554,0.3881214,91354.0,91353.0,0.00013831]
[1745352177759,0.3853845,91354.0,91353.0,0.00013831]
[1745352177926,0.16645594,91354.0,91353.0,0.00013831]
[1745352178149,0.16919283,91354.0,91353.0,0.00013831]
[1745352178723,0.38812139,91354.0,91353.0,0.00013831]
[1745352178937,0.3853845,91354.0,91353.0,0.00013831]
[1745352179401,0.3813845,91354.0,91353.0,0.00013831]
[1745352179772,0.51778637,91354.0,91353.0,0.00013831]
[1745352179975,0.53232722,91354.0,91353.0,0.00013831]
[1745352180237,0.53732722,91354.0,91353.0,0.00013831]
[1745352180490,0.52832722,91354.0,91353.0,0.00013831]
[1745352180939,0.53332722,91354.0,91353.0,0.00113831]
[1745352181108,0.53932722,91354.0,91353.0,0.00113831]
[1745352181557,0.53932722,91354.0,91328.0,0.0008476]
[1745352181558,0.26458849,91329.0,91328.0,0.0008476]
[1745352181782,0.54098528,91329.0,91328.0,0.0008476]
[1745352182036,0.44098528,91329.0,91328.0,0.0008476]
[1745352182449,0.54098528,91329.0,91328.0,0.0008476]
[1745352183324,0.55098528,91329.0,91328.0,0.0018476]
[1745352183957,0.54998528,91329.0,91328.0,0.0018476]
[1745352184180,0.54998528,91329.0,91328.0,0.0028476]
[1745352184181,0.55998528,91329.0,91328.0,0.0028476]
[1745352185679,0.5682205,91329.0,91328.0,0.0028476]
[1745352187363,0.55367965,91329.0,91328.0,0.0028476]
[1745352187587,0.45997965,91329.0,91328.0,0.0028476]
[1745352187819,0.4745205,91329.0,91328.0,0.0028476]
[1745352188362,0.6207656,91329.0,91328.0,0.0028476]
[1745352188574,0.5682205,91329.0,91328.0,0.0028476]
[1745352191475,0.55367965,91329.0,91328.0,0.0028476]
[1745352191916,0.50807965,91329.0,91328.0,0.0028476]
[1745352192130,0.45997965,91329.0,91328.0,0.0028476]
[1745352195686,0.4745205,91329.0,91328.0,0.0028476]
[1745352197319,0.23354133,91324.0,91323.0,0.0008482]
[1745352197526,0.34729727,91324.0,91323.0,0.00098654]
[1745352197956,0.35087313,91329.0,91323.0,0.00098654]
[1745352197957,0.019,91329.0,91323.0,0.00098654]
[1745352198168,0.019,91329.0,91324.0,0.04931055]
[1745352198386,0.009,91329.0,91324.0,0.06026057]
[1745352198585,0.009,91329.0,91327.0,0.0483]
[1745352198771,0.009,91329.0,91328.0,0.00081]
[1745352199001,0.00273697,91351.0,91328.0,0.01175954]
[1745352199214,0.11375594,91350.0,91340.0,0.38704411]
[1745352199422,0.00273696,91349.0,91340.0,0.38704411]
[1745352199643,0.11375594,91348.0,91340.0,0.38704411]
[1745352199869,0.001,91354.0,91341.0,0.0485]
[1745352200084,0.001,91354.0,91341.0,0.04930965]
[1745352200505,0.003,91350.0,91341.0,0.04930965]
[1745352200722,0.001,91354.0,91341.0,0.04930965]
[1745352200941,0.001,91354.0,91341.0,0.0485]
[1745352201992,0.004,91354.0,91341.0,0.0485]
[1745352202234,0.004,91348.0,91341.0,0.0485]
[1745352202483,0.004,91348.0,91325.0,0.09764]
[1745352202484,0.22992752,91334.0,91325.0,0.09764]
[1745352202705,0.12744226,91333.0,91323.0,0.00198654]
[1745352202924,0.21899897,91325.0,91323.0,0.00198654]
[1745352203145,0.11649347,91324.0,91323.0,0.00198654]
[1745352203341,0.33275642,91324.0,91323.0,0.00198654]
[1745352204064,0.33275642,91324.0,91323.0,0.00298654]
[1745352204514,0.33275642,91324.0,91323.0,0.00398654]
[1745352204921,0.33275642,91324.0,91323.0,0.00298654]
[1745352205384,0.33575642,91324.0,91323.0,0.00198654]
[1745352205834,0.33575642,91324.0,91316.0,1e-08]
[1745352205835,0.21901247,91319.0,91316.0,1e-08]
[1745352206044,0.21901726,91317.0,91316.0,1e-08]
[1745352206261,0.21901726,91317.0,91313.0,1e-08]
[1745352206262,0.21902206,91315.0,91313.0,1e-08]
[1745352206485,0.21907724,91292.0,91271.0,0.4135]
[1745352206701,0.21914926,91262.0,91260.0,0.38704411]
[1745352206907,0.21814926,91262.0,91261.0,0.0054614]
[1745352207315,0.21814926,91262.0,91261.0,0.01912279]
[1745352207543,0.21814926,91262.0,91261.0,0.0054614]
[1745352207712,0.21814926,91262.0,91261.0,0.01891814]
[1745352207923,0.21814926,91262.0,91261.0,0.0054614]
[1745352208795,0.21714926,91262.0,91261.0,0.0054614]
[1745352208972,0.21814926,91262.0,91261.0,0.0104614]
[1745352209220,0.21814926,91262.0,91261.0,0.0134614]
[1745352210535,0.21814926,91262.0,91250.0,0.4135]
[1745352210536,0.21917568,91251.0,91250.0,0.4135]
[1745352210756,0.21917568,91251.0,91250.0,0.4136383]
[1745352211424,0.21617568,91251.0,91250.0,0.4136383]
[1745352212032,0.21617568,91251.0,91250.0,0.4176383]
[1745352212637,0.21617568,91251.0,91250.0,0.4186383]
[1745352215112,0.001,91251.0,91250.0,0.4186383]
[1745352215326,0.001,91251.0,91250.0,0.4196383]
[1745352215544,0.001,91251.0,91250.0,0.57869424]
[1745352215761,0.001,91251.0,91250.0,0.62252985]
[1745352216356,0.001,91251.0,91250.0,0.57869424]
[1745352216995,0.001,91251.0,91250.0,0.4649383]
[1745352217625,0.001,91251.0,91250.0,0.4196383]
[1745352221068,0.001,91251.0,91250.0,0.46347391]
[1745352221525,0.001,91251.0,91250.0,0.62282985]
[1745352222154,0.001,91251.0,91250.0,0.62182985]
[1745352222590,0.002,91251.0,91250.0,0.62182985]
[1745352224318,0.002,91251.0,91250.0,0.4186383]
[1745352225591,0.002,91251.0,91250.0,0.4176383]
[1745352225815,0.005,91251.0,91250.0,0.4176383]
[1745352226489,0.004,91251.0,91250.0,0.4136383]
[1745352226669,0.007,91251.0,91250.0,0.4146383]
[1745352227498,0.00692329,91251.0,91250.0,0.45847391]
[1745352230146,0.00692329,91251.0,91250.0,0.24548785]
[1745352232173,0.00692329,91251.0,91250.0,0.34332785]
[1745352233575,0.00692329,91251.0,91250.0,0.75682785]
[1745352234469,0.00692329,91251.0,91250.0,0.61515224]
[1745352234686,0.00692329,91251.0,91250.0,0.71299224]
[1745352236941,0.00692329,91251.0,91250.0,0.61515224]
[1745352238191,0.00792329,91251.0,91250.0,0.61515224]
[1745352239276,0.00792329,91251.0,91250.0,0.96248379]
[1745352239963,0.00492329,91251.0,91250.0,0.96148379]
[1745352240376,0.00592329,91251.0,91250.0,0.96148379]
[1745352240611,0.00292329,91251.0,91250.0,0.96148379]
[1745352241483,0.00292329,91251.0,91250.0,0.86364379]
[1745352241702,0.00292329,91251.0,91250.0,0.71199224]
[1745352241952,0.00192329,91251.0,91250.0,0.71199224]
[1745352242396,0.00192329,91251.0,91250.0,0.75582785]
[1745352242590,0.00192329,91251.0,91250.0,0.71199224]
[1745352243011,0.00392329,91251.0,91250.0,0.71199224]
[1745352243473,0.00192329,91251.0,91250.0,0.71199224]
[1745352243885,0.00492329,91251.0,91250.0,0.71299224]
[1745352245286,0.00492329,91251.0,91250.0,0.29949224]
[1745352245696,0.00492329,91251.0,91250.0,0.34332785]
[1745352246305,0.00492329,91251.0,91250.0,0.29949224]
[1745352246792,0.00492329,91251.0,91250.0,0.34332785]
[1745352247837,0.00492329,91251.0,91250.0,0.29949224]
[1745352248380,0.00492329,91251.0,91250.0,0.34332785]
[1745352249982,0.00492329,91251.0,91250.0,0.29949224]
[1745352250420,0.00492329,91251.0,91250.0,0.34332785]
[1745352250611,0.00492329,91251.0,91250.0,0.29949224]
[1745352252167,0.00492329,91251.0,91250.0,0.20165224]
[1745352252371,0.00492329,91251.0,91250.0,0.24630269]
[1745352252577,0.00492329,91251.0,91250.0,0.24548785]
[1745352253672,0.00492329,91251.0,91250.0,0.20165224]
[1745352255853,0.00492329,91251.0,91250.0,0.24548785]
[1745352256068,0.00492329,91251.0,91250.0,0.20165224]
[1745352256276,0.00492329,91251.0,91250.0,0.24630204]
[1745352256483,0.00492329,91251.0,91250.0,0.24548785]
[1745352256692,0.00492329,91251.0,91250.0,0.35924379]
[1745352257149,0.00492329,91251.0,91250.0,0.81834379]
[1745352257556,0.00492329,91251.0,91250.0,0.62198861]
[1745352258727,0.00492329,91251.0,91250.0,0.57638861]
[1745352262467,0.00492329,91251.0,91250.0,0.46263267]
[1745352263065,0.00492329,91251.0,91250.0,0.56219267]
[1745352267037,0.00492329,91251.0,91250.0,0.55803391]
[1745352268214,0.00292329,91251.0,91250.0,0.55703391]
[1745352268424,0.00292329,91251.0,91250.0,0.55803391]
[1745352268651,0.00192329,91251.0,91250.0,0.55803391]
[1745352268847,0.00192329,91251.0,91250.0,0.56003391]
[1745352269071,0.00192329,91251.0,91250.0,0.55903391]
[1745352270979,0.00092329,91251.0,91250.0,0.56003391]
[1745352275044,0.00092329,91251.0,91250.0,0.55003391]
[1745352276220,0.00192329,91251.0,91250.0,0.55003391]
[1745352279970,0.00192329,91251.0,91250.0,0.11675594]
[1745352280195,0.00192329,91251.0,91250.0,0.003]
[1745352281051,0.00192329,91251.0,91250.0,0.04583561]
[1745352281221,0.00192329,91251.0,91250.0,0.04665034]
[1745352281667,0.00192329,91251.0,91250.0,0.04465034]
[1745352281836,0.00192329,91251.0,91250.0,0.04565034]
[1745352282375,0.00192329,91251.0,91250.0,0.04465034]
[1745352282574,0.00392329,91251.0,91250.0,0.04465034]
[1745352282788,0.00692329,91251.0,91250.0,0.04565034]
[1745352282991,0.00892329,91251.0,91250.0,0.04565034]
[1745352283407,0.00592329,91251.0,91250.0,0.04465034]
[1745352283612,0.00892329,91251.0,91250.0,0.04565034]
[1745352285678,0.00892329,91251.0,91250.0,0.001]
[1745352286085,0.00892329,91251.0,91250.0,0.00181473]
[1745352286286,0.05592329,91251.0,91250.0,0.001]
[1745352286512,0.10512329,91251.0,91250.0,0.001]
[1745352286943,0.10512329,91251.0,91245.0,0.41754303]
[1745352287145,0.10512329,91251.0,91245.0,0.41768151]
[1745352287761,0.10112329,91251.0,91245.0,0.41768151]
[1745352287961,0.05412329,91251.0,91245.0,0.41768151]
[1745352288296,0.05512329,91251.0,91247.0,0.04383665]
[1745352288505,0.05512329,91251.0,91248.0,0.00081507]
[1745352288741,0.00692329,91251.0,91248.0,0.00081507]
[1745352288946,0.00692329,91251.0,91249.0,0.000815]
[1745352289148,0.00392329,91251.0,91249.0,0.000815]
[1745352289284,0.00592329,91251.0,91249.0,0.000815]
[1745352289500,0.00492329,91251.0,91249.0,0.000815]
[1745352289695,0.00592329,91251.0,91249.0,0.000815]
[1745352290068,0.00392329,91251.0,91246.0,0.00081501]
[1745352290275,0.00692329,91251.0,91249.0,0.001]
[1745352290962,0.00392329,91251.0,91246.0,0.00081501]
[1745352291410,0.003,91251.0,91246.0,0.00081501]
[1745352291614,0.029939,91270.0,91269.0,0.04382649]
[1745352291819,0.005,91319.0,91286.0,0.04381787]
[1745352291820,0.0482,91300.0,91286.0,0.04381787]
[1745352292025,0.0482,91300.0,91287.0,0.0008123]
[1745352292440,0.0482,91300.0,91286.0,0.04381787]
[1745352293010,0.0482,91312.0,91287.0,0.0008123]
[1745352293184,0.0018492,91288.0,91287.0,0.0008123]
[1745352293384,0.0018492,91288.0,91287.0,0.11456824]
[1745352293590,0.0008492,91288.0,91287.0,0.11456771]
[1745352293820,0.0008492,91288.0,91287.0,0.14820175]
[1745352293990,0.0018492,91288.0,91287.0,0.14820175]
[1745352294423,0.0018492,91288.0,91287.0,0.09776]
[1745352295003,0.0018492,91288.0,91286.0,0.04581787]
[1745352295211,0.0008492,91288.0,91287.0,0.10276]
[1745352295420,0.0008492,91288.0,91287.0,0.09776]
[1745352295627,0.0008492,91288.0,91287.0,0.10276]
[1745352295825,0.0008492,91288.0,91287.0,0.005]
[1745352296041,0.0008492,91288.0,91264.0,0.01095722]
[1745352296042,0.11560514,91288.0,91282.0,0.09776]
[1745352296255,0.11375594,91287.0,91278.0,0.48608097]
[1745352296480,0.0029501,91288.0,91278.0,0.52990265]
[1745352296684,0.0029501,91288.0,91278.0,0.52990281]
[1745352296904,0.0019501,91288.0,91280.0,0.04382086]
[1745352297318,0.0019501,91288.0,91287.0,0.002]
[1745352297557,0.0019501,91288.0,91278.0,0.48608097]
[1745352297558,0.0019501,91288.0,91278.0,0.5299029]
[1745352297765,0.0039501,91288.0,91278.0,0.5299029]
[1745352298034,0.0039501,91288.0,91278.0,0.38832097]
[1745352298241,0.0039501,91288.0,91250.0,0.38832097]
[1745352298242,0.01095626,91272.0,91250.0,0.38832097]
[1745352298442,0.01095662,91269.0,91250.0,0.38832097]
[1745352298803,0.34658857,91268.0,91250.0,0.38832097]
[1745352298976,0.00273947,91267.0,91250.0,0.38832097]